fUST/lending_fUST_20250522
["ID","MTS","AMOUNT","RATE_DAILY","PERIOD"]
[361891277,1747872633054,-430.0,0.00021917,2]
[361891278,1747872633065,-430.0,0.00021917,2]
[361891279,1747872633076,-167.1776934,0.00021917,2]
[361891281,1747872633086,-430.0,0.00021917,2]
[361891282,1747872633096,-350.0,0.00021917,2]
[361891284,1747872633107,-430.0,0.00021917,2]
[361891285,1747872633118,-350.0,0.00021917,2]
[361891286,1747872633128,-370.0,0.00021917,2]
[361891287,1747872633139,-430.0,0.00021917,2]
[361891288,1747872633149,-430.0,0.00021917,2]
[361891289,1747872633159,-401.90127603,0.00021917,2]
[361891290,1747872633169,-400.0,0.00021917,2]
[361891291,1747872633179,-400.0,0.00021917,2]
[361891292,1747872633188,-453.49058654,0.00021917,2]
[361891293,1747872633198,-430.0,0.00021917,2]
[361891294,1747872633210,-450.0,0.00021917,2]
[361891295,1747872633220,-450.0,0.00021917,2]
[361891296,1747872633230,-430.0,0.00021917,2]
[361891297,1747872633241,-450.0,0.00021917,2]
[361891298,1747872633250,-451.43238216,0.00021917,2]
[361891299,1747872633260,-450.0,0.00021917,2]
[361891300,1747872633270,-450.0,0.00021917,2]
[361891301,1747872633280,-453.78898556,0.00021917,2]
[361891302,1747872633290,-450.0,0.00021917,2]
[361891303,1747872633299,-401.22184064,0.00021917,2]
[361891304,1747872633309,-450.0,0.00021917,2]
[361891306,1747872633319,-453.07034679,0.00021917,2]
[361891308,1747872633330,-450.0,0.00021917,2]
[361891310,1747872633340,-400.0,0.00021917,2]
[361891311,1747872633349,-450.0,0.00021917,2]
[361891313,1747872633361,-450.0,0.00021917,2]
[361891314,1747872633371,-453.67047686,0.00021917,2]
[361891315,1747872633380,-450.0,0.00021917,2]
[361891316,1747872633390,-450.0,0.00021917,2]
[361891317,1747872633399,-404.78389438,0.00021917,2]
[361891318,1747872633410,-300.44250822,0.00021917,2]
[361891319,1747872633420,-453.76837423,0.00021917,2]
[361891320,1747872633430,-455.27176951,0.00021917,2]
[361891321,1747872633440,-364.55153147,0.00021917,2]
[361891322,1747872633450,-430.0,0.00021917,2]
[361891323,1747872633459,-402.95678948,0.00021917,2]
[361891324,1747872633471,-430.0,0.00021917,2]
[361891325,1747872633486,-430.0,0.00021917,2]
[361891326,1747872633497,-430.0,0.00021917,2]
[361891327,1747872633507,-400.71815793,0.00021917,2]
[361891328,1747872633518,-430.0,0.00021917,2]
[361891329,1747872633528,-450.0,0.00021917,2]
[361891330,1747872633539,-430.0,0.00021917,2]
[361891331,1747872633549,-430.0,0.00021917,2]
[361891332,1747872633559,-450.0,0.00021917,2]
[361891333,1747872633569,-450.0,0.00021917,2]
[361891334,1747872633580,-430.0,0.00021917,2]
[361891335,1747872633591,-452.02060256,0.00021917,2]
[361891336,1747872633601,-450.48318539,0.00021917,2]
[361891337,1747872633615,-451.9045626,0.00021917,2]
[361891338,1747872633625,-430.0,0.00021917,2]
[361891339,1747872633636,-430.0,0.00021917,2]
[361891340,1747872633646,-217.01001106,0.00021917,2]
[361891341,1747872633657,-343.33243676,0.00021917,2]
[361891342,1747872633811,-363.73473975,0.00021917,2]
[361891343,1747872633823,-430.0,0.00021917,2]
[361891344,1747872633834,-430.0,0.00021917,2]
[361891345,1747872633845,-430.0,0.00021917,2]
[361891346,1747872633856,-430.0,0.00021917,2]
[361891347,1747872633867,-520.51656601,0.00021917,2]
[361891348,1747872633877,-430.0,0.00021917,2]
[361891349,1747872633891,-430.0,0.00021917,2]
[361891350,1747872633902,-430.0,0.00021917,2]
[361891351,1747872633912,-430.0,0.00021917,2]
[361891352,1747872633922,-300.0,0.00021917,2]
[361891353,1747872633931,-1145.27854563,0.00021917,2]
[361891354,1747872633941,-450.0,0.00021917,2]
[361891355,1747872633951,-430.0,0.00021917,2]
[361891356,1747872633962,-430.0,0.00021917,2]
[361891357,1747872633971,-430.0,0.00021917,2]
[361891358,1747872633981,-430.0,0.00021917,2]
[361891359,1747872633990,-450.0,0.00021917,2]
[361891360,1747872634000,-450.0,0.00021917,2]
[361891361,1747872634011,-430.0,0.00021917,2]
[361891362,1747872634020,-450.0,0.00021917,2]
[361891363,1747872634030,-430.0,0.00021917,2]
[361891364,1747872634039,-130.23596348,0.00021917,2]
[361891365,1747872634054,-319.76403652,0.00021917,2]
[361891366,1747872634063,-450.0,0.00021917,2]
[361891367,1747872634073,-450.0,0.00021917,2]
[361891368,1747872634083,-450.0,0.00021917,2]
[361891369,1747872634093,-450.0,0.00021917,2]
[361891370,1747872634102,-430.0,0.00021917,2]
[361891371,1747872634113,-450.0,0.00021917,2]
[361891372,1747872634123,-370.0,0.00021917,2]
[361891373,1747872634133,-404.11969996,0.00021917,2]
[361891386,1747872638484,-154.20336941,0.00021916,2]
[361891387,1747872638494,-500.0,0.00021916,2]
[361891388,1747872638505,-464.26034575,0.00021916,2]
[361891389,1747872638515,-25.88030004,0.00021917,2]
[361891390,1747872638525,-430.0,0.00021917,2]
[361891391,1747872638535,-301.37178757,0.00021917,2]
[361891392,1747872638545,-450.0,0.00021917,2]
[361891393,1747872638555,-217.42104227,0.00021917,2]
[361891394,1747872638578,-449.07192316,0.00021917,2]
[361891398,1747872638968,-0.92807684,0.00021917,2]
[361891399,1747872638977,-41.08103727,0.00021917,2]
[361891413,1747872640925,-308.91896273,0.00021917,2]
[361891414,1747872640936,-350.0,0.00021917,2]
[361891415,1747872640946,-14.68103727,0.00021917,2]
[361891429,1747872645840,-386.49186298,0.00021917,2]
[361891430,1747872645853,-450.0,0.00021917,2]
[361891431,1747872645869,-430.0,0.00021917,2]
[361891432,1747872645885,-1111.8,0.00021917,2]
[361891433,1747872645898,-430.0,0.00021917,2]
[361891434,1747872645912,-270.0,0.00021917,2]
[361891435,1747872645927,-430.0,0.00021917,2]
[361891436,1747872645940,-490.0,0.00021917,2]
[361891437,1747872645953,-501.28,0.00021917,2]
[361891438,1747872645963,-430.0,0.00021917,2]
[361891439,1747872645974,-430.0,0.00021917,2]
[361891440,1747872645985,-450.0,0.00021917,2]
[361891441,1747872645997,-430.0,0.00021917,2]
[361891443,1747872646007,-430.0,0.00021917,2]
[361891445,1747872646020,-437.2179906,0.00021917,2]
[361891447,1747872646032,-430.0,0.00021917,2]
[361891449,1747872646044,-430.0,0.00021917,2]
[361891450,1747872646057,-430.0,0.00021917,2]
[361891451,1747872646069,-430.0,0.00021917,2]
[361891452,1747872646080,-454.3561871,0.00021917,2]
[361891453,1747872646093,-433.19044807,0.00021917,2]
[361891454,1747872646108,-430.0,0.00021917,2]
[361891455,1747872646123,-450.0,0.00021917,2]
[361891456,1747872646137,-450.0,0.00021917,2]
[361891457,1747872646151,-450.0,0.00021917,2]
[361891458,1747872646164,-430.0,0.00021917,2]
[361891459,1747872646175,-554.82,0.00021917,2]
[361891460,1747872646186,-430.0,0.00021917,2]
[361891461,1747872646196,-450.0,0.00021917,2]
[361891463,1747872646207,-430.0,0.00021917,2]
[361891464,1747872646218,-450.0,0.00021917,2]
[361891465,1747872646230,-430.0,0.00021917,2]
[361891466,1747872646243,-481.94,0.00021917,2]
[361891467,1747872646257,-430.0,0.00021917,2]
[361891468,1747872646270,-341.9882811,0.00021917,2]
[361891469,1747872646284,-664.03,0.00021917,2]
[361891470,1747872646294,-430.0,0.00021917,2]
[361891471,1747872646304,-160.19330124,0.00021917,2]
[361891472,1747872646316,-326.9439525,0.00021917,2]
[361891473,1747872646328,-766.17,0.00021917,2]
[361891474,1747872646340,-430.0,0.00021917,2]
[361891475,1747872646355,-430.0,0.00021917,2]
[361891476,1747872646372,-314.23273288,0.00021917,2]
[361891477,1747872646384,-439.45,0.00021917,2]
[361891479,1747872646396,-430.0,0.00021917,2]
[361891480,1747872646408,-450.0,0.00021917,2]
[361891481,1747872646420,-430.0,0.00021917,2]
[361891482,1747872646432,-430.0,0.00021917,2]
[361891483,1747872646444,-450.0,0.00021917,2]
[361891484,1747872646455,-450.0,0.00021917,2]
[361891485,1747872646467,-500.0,0.00021917,2]
[361891487,1747872646478,-500.0,0.00021917,2]
[361891489,1747872646489,-430.0,0.00021917,2]
[361891490,1747872646501,-500.0,0.00021917,2]
[361891491,1747872646512,-450.0,0.00021917,2]
[361891492,1747872646524,-300.0,0.00021917,2]
[361891493,1747872646536,-430.0,0.00021917,2]
[361891494,1747872646548,-430.0,0.00021917,2]
[361891495,1747872646561,-430.0,0.00021917,2]
[361891496,1747872646574,-151.0,0.00021917,2]
[361891497,1747872646586,-151.0,0.00021917,2]
[361891498,1747872646598,-430.0,0.00021917,2]
[361891499,1747872646610,-171.0,0.00022,2]
[361891500,1747872646623,-500.0,0.00022054,2]
[361891501,1747872646635,-467.04,0.00022191,2]
[361891502,1747872646647,-450.0,0.00022191,2]
[361891503,1747872646659,-430.0,0.00022191,2]
[361891504,1747872646671,-430.0,0.00022191,2]
[361891505,1747872646682,-430.0,0.00022191,2]
[361891506,1747872646694,-430.0,0.00022191,2]
[361891507,1747872646707,-1111.8,0.00022191,2]
[361891508,1747872646718,-430.0,0.00022191,2]
[361891509,1747872646731,-501.28,0.00022191,2]
[361891510,1747872646743,-450.0,0.00022191,2]
[361891511,1747872646755,-430.0,0.00022191,2]
[361891512,1747872646766,-328.44,0.00022191,2]
[361891514,1747872646778,-430.0,0.00022191,2]
[361891515,1747872646789,-457.73,0.00022191,2]
[361891517,1747872646801,-430.0,0.00022191,2]
[361891519,1747872646813,-430.0,0.00022191,2]
[361891522,1747872646824,-481.94,0.00022191,2]
[361891523,1747872646836,-170.63285585,0.00022191,2]
[361891524,1747872646847,-664.03,0.00022191,2]
[361891525,1747872646859,-430.0,0.00022191,2]
[361891526,1747872646874,-766.17,0.00022191,2]
[361891527,1747872646891,-430.0,0.00022191,2]
[361891528,1747872646903,-470.0,0.00022191,2]
[361891529,1747872646916,-439.45,0.00022191,2]
[361891530,1747872646929,-430.0,0.00022191,2]
[361891531,1747872646941,-430.0,0.00022191,2]
[361891532,1747872646953,-430.0,0.00022465,2]
[361891533,1747872646966,-430.0,0.00022465,2]
[361891534,1747872646978,-430.0,0.00022465,2]
[361891535,1747872646990,-1111.8,0.00022465,2]
[361891536,1747872647003,-430.0,0.00022465,2]
[361891537,1747872647015,-501.28,0.00022465,2]
[361891538,1747872647027,-430.0,0.00022465,2]
[361891539,1747872647038,-430.0,0.00022465,2]
[361891540,1747872647049,-430.0,0.00022465,2]
[361891541,1747872647060,-430.0,0.00022465,2]
[361891542,1747872647071,-481.94,0.00022465,2]
[361891543,1747872647082,-664.03,0.00022465,2]
[361891544,1747872647092,-195.55752552,0.00022465,2]
[361891545,1747872647106,-234.44247448,0.00022465,2]
[361891546,1747872647118,-766.17,0.00022465,2]
[361891547,1747872647128,-430.0,0.00022465,2]
[361891548,1747872647138,-439.45,0.00022465,2]
[361891549,1747872647150,-423.05321969,0.00022465,2]
[361891550,1747872647162,-6.94678031,0.00022465,2]
[361891551,1747872647425,-160.08764,0.00022736,8]
[361891552,1747872647439,-347.60790988,0.00022737,2]
[361891553,1747872647450,-370.0,0.00022738,2]
[361891554,1747872647459,-500.0,0.00022738,2]
[361891555,1747872647469,-500.0,0.00022738,2]
[361891556,1747872647479,-646.90957899,0.00022738,2]
[361891557,1747872647489,-500.0,0.00022738,2]
[361891558,1747872647498,-500.0,0.00022738,2]
[361891559,1747872647508,-337.93408737,0.00022738,2]
[361891560,1747872647518,-500.0,0.00022738,2]
[361891561,1747872647528,-500.0,0.00022738,2]
[361891562,1747872647537,-500.0,0.00022738,2]
[361891563,1747872647547,-430.0,0.00022739,2]
[361891564,1747872647556,-430.0,0.00022739,2]
[361891565,1747872647567,-430.0,0.00022739,2]
[361891566,1747872647577,-1111.8,0.00022739,2]
[361891567,1747872647587,-430.0,0.00022739,2]
[361891568,1747872647597,-149.86582916,0.00022739,2]
[361891569,1747872648060,-30.06205564,0.00022739,2]
[361891576,1747873190313,160.870442,0.00013699,2]
[361891580,1747873537099,-285.9577706,0.00020201,2]
[361891588,1747873634193,-2052.21401284,0.00019999,2]
[361891591,1747873641143,-945.07461404,0.00019999,2]
[361891595,1747873644115,-155.7979105,0.00019999,2]
[361891602,1747873750148,-5050.57519965,0.00018,2]
[361891603,1747873750170,-31.78730772,0.000189,2]
[361891604,1747873753145,-118.21269228,0.000189,2]
[361891605,1747873753168,-1846.91346262,0.00019999,2]
[361891606,1747873753190,-176.735029,0.00020551,2]
[361891607,1747873753210,-1019.68703272,0.00020601,10]
[361891608,1747873753233,-307.37997193,0.00020611,2]
[361891609,1747873753269,-89.85638107,0.00020611,2]
[361891610,1747873753294,-1186.2055352,0.000209,4]
[361891611,1747873753317,-300.0,0.00021017,2]
[361891612,1747873753338,-1200.0,0.00021018,2]
[361891613,1747873753359,-467.5035788,0.0002102,2]
[361891614,1747873753380,-300.0,0.00021106,2]
[361891615,1747873753406,-1186.2055352,0.00021107,4]
[361891616,1747873753588,-1186.2055352,0.00021314,5]
[361891617,1747873753617,-1186.2055352,0.00021521,5]
[361891618,1747873753641,-500.0,0.00021605,2]
[361891619,1747873753662,-500.0,0.00021605,2]
[361891620,1747873753686,-496.4781054,0.00021605,2]
[361891621,1747873770136,-4671.01202879,0.00021389,2]
[361891651,1747873832736,-267.88980492,0.00020789,2]
[361891655,1747873832791,-2294.61225376,0.00020789,2]
[361891658,1747873832904,-1320.85925227,0.00020789,2]
[361891664,1747873838551,-300.0,0.00020788,2]
[361891665,1747873838561,-2556.04198345,0.00020789,2]
[361891666,1747873838609,-4667.16508512,0.00020789,2]
[361891667,1747873838949,-743.27572607,0.00020789,2]
[361891668,1747873838961,-4688.2175624,0.00020789,2]
[361891673,1747873840773,-523.98920043,0.00020789,2]
[361891674,1747873840785,-4090.94979195,0.00020789,2]
[361891676,1747873840832,-2707.59966657,0.00020789,2]
[361891677,1747873840843,-1039.39967306,0.00020789,2]
[361891678,1747873840853,-145.92831262,0.00021389,2]
[361891679,1747873840865,-183.05965859,0.00021389,2]
[361891680,1747873840874,-300.0,0.00021604,2]
[361891681,1747873840884,-1200.0,0.00021604,2]
[361891682,1747873840894,-500.0,0.00021604,2]
[361891683,1747873840904,-500.0,0.00021604,2]
[361891684,1747873840913,-512.58770292,0.00021604,2]
[361891685,1747873840923,-500.0,0.00021604,2]
[361891686,1747873840932,-500.0,0.00021604,2]
[361891687,1747873840942,-500.0,0.00021604,2]
[361891688,1747873840951,-358.92979051,0.00021604,2]
[361891689,1747873840960,-500.0,0.00021604,2]
[361891690,1747873840969,-500.0,0.00021604,2]
[361891691,1747873840979,-500.0,0.00021604,2]
[361891692,1747873840989,-500.0,0.00021604,2]
[361891693,1747873840999,-500.0,0.00021604,2]
[361891694,1747873841008,-467.67839646,0.00021604,2]
[361891695,1747873841018,-500.0,0.00021604,2]
[361891696,1747873841028,-500.0,0.00021604,2]
[361891697,1747873841037,-500.0,0.00021604,2]
[361891698,1747873841047,-599.2788703,0.00021604,2]
[361891699,1747873841058,-500.0,0.00021604,2]
[361891700,1747873841068,-155.4715562,0.00021604,2]
[361891701,1747873841080,-344.5284438,0.00021604,2]
[361891702,1747873841090,-611.39873118,0.00021604,2]
[361891703,1747873841099,-500.0,0.00021604,2]
[361891704,1747873841109,-168.40959227,0.00021604,2]
[361891705,1747873841121,-324.97025148,0.00021604,2]
[361891706,1747873841133,-6.62015625,0.00021604,2]
[361891707,1747873841142,-500.0,0.00021604,2]
[361891708,1747873841152,-500.0,0.00021604,2]
[361891709,1747873841162,-500.0,0.00021604,2]
[361891710,1747873841171,-500.0,0.00021604,2]
[361891711,1747873841180,-615.18497485,0.00021604,2]
[361891712,1747873841190,-417.06397263,0.00021604,2]
[361891713,1747873841201,-500.0,0.00021604,2]
[361891714,1747873841211,-500.0,0.00021604,2]
[361891715,1747873841221,-500.0,0.00021604,2]
[361891716,1747873841230,-500.0,0.00021604,2]
[361891717,1747873841239,-500.0,0.00021604,2]
[361891718,1747873841251,-500.0,0.00021604,2]
[361891719,1747873841261,-500.0,0.00021604,2]
[361891720,1747873841270,-487.49647746,0.00021604,2]
[361891721,1747873841280,-500.0,0.00021604,2]
[361891722,1747873841291,-500.0,0.00021604,2]
[361891723,1747873841300,-500.0,0.00021604,2]
[361891724,1747873841310,-500.0,0.00021604,2]
[361891725,1747873841320,-500.0,0.00021604,2]
[361891726,1747873841331,-500.0,0.00021604,2]
[361891727,1747873841340,-500.0,0.00021604,2]
[361891728,1747873841350,-500.0,0.00021604,2]
[361891729,1747873841359,-500.0,0.00021604,2]
[361891730,1747873841369,-500.0,0.00021604,2]
[361891731,1747873841379,-500.0,0.00021604,2]
[361891732,1747873841389,-500.0,0.00021604,2]
[361891733,1747873841399,-500.0,0.00021604,2]
[361891734,1747873841409,-500.0,0.00021604,2]
[361891735,1747873841419,-500.0,0.00021604,2]
[361891736,1747873841429,-246.58024311,0.00021604,2]
[361891737,1747873841438,-500.0,0.00021604,2]
[361891738,1747873841448,-500.0,0.00021604,2]
[361891739,1747873841458,-500.0,0.00021604,2]
[361891740,1747873841467,-500.0,0.00021604,2]
[361891741,1747873841476,-500.0,0.00021604,2]
[361891742,1747873841487,-500.0,0.00021604,2]
[361891743,1747873841497,-500.0,0.00021604,2]
[361891744,1747873841507,-500.0,0.00021604,2]
[361891745,1747873841516,-500.0,0.00021604,2]
[361891746,1747873841526,-500.0,0.00021604,2]
[361891747,1747873841536,-173.993769,0.00021682,2]
[361891748,1747873841545,-232.58872758,0.00021817,2]
[361891775,1747873843679,-384.15480646,0.00021817,2]
[361891776,1747873843689,-500.0,0.00021916,2]
[361891777,1747873843699,-500.0,0.00021916,2]
[361891778,1747873843709,-372.94650258,0.00021916,2]
[361891779,1747873843720,-500.0,0.00021916,2]
[361891780,1747873843730,-492.76655451,0.00021916,2]
[361891781,1747873843741,-500.0,0.00021916,2]
[361891782,1747873843751,-500.0,0.00021916,2]
[361891783,1747873843760,-430.0,0.00021917,2]
[361891784,1747873843770,-400.0,0.00021917,2]
[361891785,1747873843779,-200.62611293,0.00021917,2]
[361891786,1747873843800,-199.37388707,0.00021917,2]
[361891787,1747873843810,-400.0,0.00021917,2]
[361891788,1747873843819,-400.0,0.00021917,2]
[361891789,1747873843829,-149.52713675,0.00021917,2]
[361891792,1747873844072,-280.47286325,0.00021917,2]
[361891793,1747873844082,-23.01395075,0.00021917,2]
[361891799,1747873846743,-466.98604925,0.00021917,2]
[361891800,1747873846753,-430.0,0.00021917,2]
[361891801,1747873846763,-430.0,0.00021917,2]
[361891802,1747873846772,-430.0,0.00021917,2]
[361891803,1747873846782,-449.55381702,0.00021917,2]
[361891804,1747873846792,-1012.80790411,0.00021917,2]
[361891805,1747873846801,-430.0,0.00021917,2]
[361891806,1747873846811,-430.0,0.00021917,2]
[361891807,1747873846821,-430.0,0.00021917,2]
[361891808,1747873846831,-430.0,0.00021917,2]
[361891809,1747873846840,-430.0,0.00021917,2]
[361891810,1747873846850,-430.0,0.00021917,2]
[361891811,1747873846859,-430.0,0.00021917,2]
[361891812,1747873846869,-430.0,0.00021917,2]
[361891814,1747873846878,-430.0,0.00021917,2]
[361891815,1747873846888,-430.0,0.00021917,2]
[361891816,1747873846898,-430.0,0.00021917,2]
[361891817,1747873846908,-400.0,0.00021917,2]
[361891819,1747873846918,-430.0,0.00021917,2]
[361891820,1747873846928,-430.0,0.00021917,2]
[361891821,1747873846938,-450.0,0.00021917,2]
[361891822,1747873846948,-400.0,0.00021917,2]
[361891823,1747873846958,-430.0,0.00021917,2]
[361891824,1747873846968,-430.0,0.00021917,2]
[361891825,1747873846977,-1000.0,0.00021917,2]
[361891826,1747873846987,-400.0,0.00021917,2]
[361891827,1747873846997,-430.0,0.00021917,2]
[361891828,1747873847007,-430.0,0.00021917,2]
[361891829,1747873847017,-450.0,0.00021917,2]
[361891830,1747873847027,-450.0,0.00021917,2]
[361891831,1747873847037,-430.0,0.00021917,2]
[361891832,1747873847047,-430.0,0.00021917,2]
[361891833,1747873847057,-430.0,0.00021917,2]
[361891834,1747873847067,-430.0,0.00021917,2]
[361891835,1747873847077,-430.0,0.00021917,2]
[361891836,1747873847087,-362.35459007,0.00021917,2]
[361891837,1747873847097,-430.0,0.00021917,2]
[361891838,1747873847106,-430.0,0.00021917,2]
[361891839,1747873847115,-430.0,0.00021917,2]
[361891840,1747873847125,-400.0,0.00021917,2]
[361891841,1747873847135,-430.0,0.00021917,2]
[361891842,1747873847146,-430.0,0.00021917,2]
[361891843,1747873847156,-512.06980326,0.00021917,2]
[361891844,1747873847165,-204.51955161,0.00021917,2]
[361891845,1747873847174,-430.0,0.00021917,2]
[361891846,1747873847183,-400.0,0.00021917,2]
[361891847,1747873847193,-278.29807434,0.00021917,2]
[361891848,1747873847203,-500.0,0.00021917,2]
[361891849,1747873847212,-500.0,0.00021917,2]
[361891850,1747873847222,-430.0,0.00021917,2]
[361891851,1747873847233,-430.0,0.00021917,2]
[361891852,1747873847242,-430.0,0.00021917,2]
[361891853,1747873847252,-430.0,0.00021917,2]
[361891854,1747873847264,-430.0,0.00021917,2]
[361891855,1747873847274,-430.0,0.00021917,2]
[361891856,1747873847283,-381.70622689,0.00021917,2]
[361891857,1747873847294,-430.0,0.00021917,2]
[361891858,1747873847304,-450.0,0.00021917,2]
[361891859,1747873847313,-421.68842109,0.00021917,2]
[361891860,1747873847323,-400.0,0.00021917,2]
[361891861,1747873847333,-430.0,0.00021917,2]
[361891862,1747873847344,-430.0,0.00021917,2]
[361891863,1747873847354,-460.0,0.00021917,2]
[361891864,1747873847364,-400.0,0.00021917,2]
[361891865,1747873847373,-430.0,0.00021917,2]
[361891866,1747873847385,-450.0,0.00021917,2]
[361891867,1747873847401,-430.0,0.00021917,2]
[361891868,1747873847417,-430.0,0.00021917,2]
[361891869,1747873847433,-430.0,0.00021917,2]
[361891870,1747873847445,-430.0,0.00021917,2]
[361891871,1747873847459,-430.0,0.00021917,2]
[361891872,1747873847474,-430.0,0.00021917,2]
[361891873,1747873847487,-460.0,0.00021917,2]
[361891874,1747873847502,-430.0,0.00021917,2]
[361891875,1747873847518,-430.0,0.00021917,2]
[361891876,1747873847531,-430.0,0.00021917,2]
[361891877,1747873847546,-430.0,0.00021917,2]
[361891878,1747873847560,-400.0,0.00021917,2]
[361891879,1747873847574,-430.0,0.00021917,2]
[361891880,1747873847587,-430.0,0.00021917,2]
[361891881,1747873847600,-430.0,0.00021917,2]
[361891882,1747873847613,-450.0,0.00021917,2]
[361891883,1747873847627,-430.0,0.00021917,2]
[361891884,1747873847644,-430.0,0.00021917,2]
[361891885,1747873847657,-430.0,0.00021917,2]
[361891886,1747873847670,-430.0,0.00021917,2]
[361891887,1747873847681,-430.0,0.00021917,2]
[361891888,1747873847694,-296.83078456,0.00021917,2]
[361891889,1747873847705,-350.0,0.00021917,2]
[361891890,1747873847720,-430.0,0.00021917,2]
[361891891,1747873847733,-430.0,0.00021917,2]
[361891892,1747873847747,-430.0,0.00021917,2]
[361891893,1747873847760,-430.0,0.00021917,2]
[361891894,1747873847774,-430.0,0.00021917,2]
[361891895,1747873847790,-430.0,0.00021917,2]
[361891896,1747873847804,-450.0,0.00021917,2]
[361891897,1747873847817,-430.0,0.00021917,2]
[361891898,1747873847827,-208.4792894,0.00021917,2]
[361891899,1747873847838,-430.0,0.00021917,2]
[361891900,1747873847850,-450.0,0.00021917,2]
[361891901,1747873847864,-430.0,0.00021917,2]
[361891902,1747873847880,-430.0,0.00021917,2]
[361891903,1747873847892,-430.0,0.00021917,2]
[361891904,1747873847903,-430.0,0.00021917,2]
[361891905,1747873847915,-430.0,0.00021917,2]
[361891906,1747873847928,-430.0,0.00021917,2]
[361891907,1747873847942,-430.0,0.00021917,2]
[361891908,1747873847954,-430.0,0.00021917,2]
[361891909,1747873847965,-430.0,0.00021917,2]
[361891910,1747873847976,-430.0,0.00021917,2]
[361891911,1747873847988,-430.0,0.00021917,2]
[361891912,1747873848000,-430.0,0.00021917,2]
[361891913,1747873848012,-430.0,0.00021917,2]
[361891914,1747873848024,-450.0,0.00021917,2]
[361891915,1747873848038,-430.0,0.00021917,2]
[361891916,1747873848050,-430.0,0.00021917,2]
[361891917,1747873848063,-430.0,0.00021917,2]
[361891918,1747873848075,-430.0,0.00021917,2]
[361891919,1747873848088,-430.0,0.00021917,2]
[361891920,1747873848100,-430.0,0.00021917,2]
[361891921,1747873848114,-430.0,0.00021917,2]
[361891922,1747873848127,-430.0,0.00021917,2]
[361891923,1747873848139,-400.0,0.00021917,2]
[361891924,1747873848152,-430.0,0.00021917,2]
[361891925,1747873848164,-430.0,0.00021917,2]
[361891926,1747873848177,-430.0,0.00021917,2]
[361891927,1747873848190,-400.0,0.00021917,2]
[361891928,1747873848203,-205.80290436,0.00021917,2]
[361891929,1747873848215,-430.0,0.00021917,2]
[361891930,1747873848227,-430.0,0.00021917,2]
[361891931,1747873848240,-430.0,0.00021917,2]
[361891932,1747873848253,-430.0,0.00021917,2]
[361891933,1747873848266,-400.0,0.00021917,2]
[361891934,1747873848279,-430.0,0.00021917,2]
[361891935,1747873848291,-430.0,0.00021917,2]
[361891936,1747873848303,-430.0,0.00021917,2]
[361891937,1747873848316,-430.0,0.00021917,2]
[361891938,1747873848329,-450.0,0.00021917,2]
[361891939,1747873848342,-430.0,0.00021917,2]
[361891940,1747873848354,-450.0,0.00021917,2]
[361891941,1747873848366,-450.0,0.00021917,2]
[361891942,1747873848379,-400.0,0.00021917,2]